[Event "Live Chess"]
[Site "Chess.com"]
[Date "2023.05.21"]
[Round "-"]
[White "ItsNot_Jasper"]
[Black "LiamBellwood"]
[Result "0-1"]
[WhiteElo "1391"]
[BlackElo "1901"]
[TimeControl "300"]
[EndTime "4:26:52 PDT"]
[Termination "LiamBellwood won by resignation"]

1. c4 {[%clk 0:04:55.7]} 1... e6 {[%clk 0:04:59.9]} 2. d4 {[%clk 0:04:54.2]}
2... f5 {[%clk 0:04:59.6]} 3. Nc3 {[%clk 0:04:50.9]} 3... Nf6 {[%clk 0:04:59.5]}
4. Nf3 {[%clk 0:04:49.2]} 4... Bb4 {[%clk 0:04:58.7]} 5. Bg5 {[%clk 0:04:47.9]}
5... Bxc3+ {[%clk 0:04:56.5]} 6. bxc3 {[%clk 0:04:46.9]} 6... h6 {[%clk
0:04:56.4]} 7. Bxf6 {[%clk 0:04:44.3]} 7... Qxf6 {[%clk 0:04:56.3]} 8. e3 {[%clk
0:04:42.6]} 8... O-O {[%clk 0:04:55.9]} 9. Bd3 {[%clk 0:04:41.7]} 9... b6 {[%clk
0:04:54.7]} 10. O-O {[%clk 0:04:40]} 10... Bb7 {[%clk 0:04:54.4]} 11. h3 {[%clk
0:04:38]} 11... d6 {[%clk 0:04:53.9]} 12. Qb3 {[%clk 0:04:35.5]} 12... Kh8
{[%clk 0:04:50.3]} 13. Be2 {[%clk 0:04:34.1]} 13... e5 {[%clk 0:04:48.3]} 14.
Nd2 {[%clk 0:04:29.6]} 14... f4 {[%clk 0:04:35]} 15. Bf3 {[%clk 0:04:23.6]}
15... Bxf3 {[%clk 0:04:33.3]} 16. Nxf3 {[%clk 0:04:23.5]} 16... e4 {[%clk
0:04:30.8]} 17. Nd2 {[%clk 0:04:16.4]} 17... f3 {[%clk 0:04:29.9]} 18. Nxe4
{[%clk 0:04:13.2]} 18... Qg6 {[%clk 0:04:18.5]} 19. Ng3 {[%clk 0:04:10.6]} 19...
h5 {[%clk 0:04:08.1]} 20. h4 {[%clk 0:03:56.5]} 20... Qg4 {[%clk 0:04:02.3]} 21.
gxf3 {[%clk 0:03:50]} 21... Rxf3 {[%clk 0:03:53.2]} 22. Qb5 {[%clk 0:03:37.7]}
22... g6 {[%clk 0:03:26.9]} 23. Qe8+ {[%clk 0:03:33.4]} 23... Kg7 {[%clk
0:03:17.7]} 24. Qe7+ {[%clk 0:03:32.4]} 24... Kh6 {[%clk 0:03:06.1]} 25. Qg5+
{[%clk 0:03:12.1]} 25... Qxg5 {[%clk 0:03:02.8]} 26. hxg5+ {[%clk 0:03:12]}
26... Kxg5 {[%clk 0:03:02.7]} 27. Ne4+ {[%clk 0:03:10.7]} 27... Kf5 {[%clk
0:02:53.7]} 28. Nd2 {[%clk 0:03:07.2]} 28... Rh3 {[%clk 0:02:49.6]} 29. Kg2
{[%clk 0:03:06]} 29... Rh4 {[%clk 0:02:48.8]} 30. f4 {[%clk 0:03:02.6]} 30...
Rg4+ {[%clk 0:02:45.8]} 31. Kh3 {[%clk 0:03:00.1]} 31... Nd7 {[%clk 0:02:33]}
32. Rg1 {[%clk 0:02:54.2]} 32... Nf6 {[%clk 0:02:30.6]} 33. a4 {[%clk
0:02:35.4]} 33... Re8 {[%clk 0:02:23.9]} 34. Rxg4 {[%clk 0:02:21.3]} 34... hxg4+
{[%clk 0:02:13.3]} 35. Kg2 {[%clk 0:02:17.2]} 35... Rxe3 {[%clk 0:02:11.4]} 36.
Rc1 {[%clk 0:02:15.9]} 36... Re2+ {[%clk 0:02:09.4]} 0-1

[Event "Live Chess"]
[Site "Chess.com"]
[Date "2023.05.21"]
[Round "-"]
[White "FlyingChessKestrel13"]
[Black "Crowded_House"]
[Result "1-0"]
[WhiteElo "2085"]
[BlackElo "1649"]
[TimeControl "300"]
[EndTime "4:26:57 PDT"]
[Termination "FlyingChessKestrel13 won by resignation"]

1. e4 {[%clk 0:04:55.9]} 1... e6 {[%clk 0:04:59.2]} 2. d4 {[%clk 0:04:54.6]}
2... d5 {[%clk 0:04:58.7]} 3. exd5 {[%clk 0:04:53.7]} 3... exd5 {[%clk
0:04:57.7]} 4. c4 {[%clk 0:04:53.1]} 4... c6 {[%clk 0:04:55.9]} 5. Nc3 {[%clk
0:04:51.4]} 5... Bb4 {[%clk 0:04:41.8]} 6. Bd3 {[%clk 0:04:50.2]} 6... Ne7
{[%clk 0:04:31.8]} 7. Ne2 {[%clk 0:04:48.8]} 7... f6 {[%clk 0:04:27.4]} 8. O-O
{[%clk 0:04:47.9]} 8... O-O {[%clk 0:04:26]} 9. Nf4 {[%clk 0:04:44.7]} 9... Re8
{[%clk 0:04:14.3]} 10. cxd5 {[%clk 0:04:41.7]} 10... Bxc3 {[%clk 0:04:11.1]} 11.
bxc3 {[%clk 0:04:40.2]} 11... Nxd5 {[%clk 0:04:08.5]} 12. Qh5 {[%clk 0:04:30.6]}
12... Nxf4 {[%clk 0:03:51.9]} 13. Qxh7+ {[%clk 0:04:25.9]} 13... Kf8 {[%clk
0:03:50.8]} 14. Bxf4 {[%clk 0:04:21.7]} 14... Be6 {[%clk 0:03:38.3]} 15. Bg6
{[%clk 0:04:12.7]} 15... Re7 {[%clk 0:03:33.8]} 16. Qh8+ {[%clk 0:04:09.4]}
16... Bg8 {[%clk 0:03:32.1]} 17. Rfe1 {[%clk 0:03:39]} 17... Nd7 {[%clk
0:03:26.5]} 18. Bd6 {[%clk 0:03:34.4]} 1-0

[Event "Live Chess"]
[Site "Chess.com"]
[Date "2023.05.21"]
[Round "-"]
[White "Goblinbasher"]
[Black "HoarseyHorsey"]
[Result "0-1"]
[WhiteElo "1225"]
[BlackElo "1455"]
[TimeControl "300"]
[EndTime "4:27:17 PDT"]
[Termination "HoarseyHorsey won by resignation"]

1. e4 {[%clk 0:04:57.9]} 1... c5 {[%clk 0:04:57]} 2. Nc3 {[%clk 0:04:56.3]} 2...
Nc6 {[%clk 0:04:56.3]} 3. f4 {[%clk 0:04:54.9]} 3... g6 {[%clk 0:04:55.7]} 4.
Nf3 {[%clk 0:04:53.3]} 4... Bg7 {[%clk 0:04:55]} 5. d3 {[%clk 0:04:45.3]} 5...
e6 {[%clk 0:04:53.3]} 6. Be2 {[%clk 0:04:42.4]} 6... Nge7 {[%clk 0:04:52.3]} 7.
O-O {[%clk 0:04:41]} 7... O-O {[%clk 0:04:51.2]} 8. Qe1 {[%clk 0:04:40.3]} 8...
a6 {[%clk 0:04:50.3]} 9. a3 {[%clk 0:04:36.9]} 9... b5 {[%clk 0:04:48.4]} 10.
Qg3 {[%clk 0:04:26.2]} 10... Qc7 {[%clk 0:04:36.6]} 11. Qh3 {[%clk 0:04:20.6]}
11... f6 {[%clk 0:04:32.1]} 12. f5 {[%clk 0:04:17.2]} 12... exf5 {[%clk
0:04:31.1]} 13. exf5 {[%clk 0:04:16.1]} 13... Nxf5 {[%clk 0:04:28.3]} 14. Ne4
{[%clk 0:04:12.6]} 14... d6 {[%clk 0:03:58.2]} 15. Bf4 {[%clk 0:03:56.4]} 15...
Ne5 {[%clk 0:03:38.2]} 16. Nxe5 {[%clk 0:03:33.5]} 16... dxe5 {[%clk 0:03:35.3]}
17. Be3 {[%clk 0:03:31.4]} 17... Nd4 {[%clk 0:03:22.8]} 18. Qg3 {[%clk
0:03:28.1]} 18... Nxe2+ {[%clk 0:03:19.8]} 0-1

[Event "Live Chess"]
[Site "Chess.com"]
[Date "2023.05.21"]
[Round "-"]
[White "Brooms1989"]
[Black "NomisY"]
[Result "0-1"]
[WhiteElo "1140"]
[BlackElo "1553"]
[TimeControl "300"]
[EndTime "4:27:22 PDT"]
[Termination "NomisY won by resignation"]

1. e4 {[%clk 0:04:57.9]} 1... c6 {[%clk 0:04:58.1]} 2. d4 {[%clk 0:04:55.8]}
2... d5 {[%clk 0:04:57.5]} 3. f3 {[%clk 0:04:55.2]} 3... e6 {[%clk 0:04:49.1]}
4. Bd3 {[%clk 0:04:46.4]} 4... c5 {[%clk 0:04:47]} 5. dxc5 {[%clk 0:04:44.5]}
5... Bxc5 {[%clk 0:04:44.9]} 6. Ne2 {[%clk 0:04:44]} 6... dxe4 {[%clk
0:04:29.2]} 7. Bxe4 {[%clk 0:04:41.2]} 7... Qxd1+ {[%clk 0:04:26.8]} 8. Kxd1
{[%clk 0:04:39.4]} 8... Nf6 {[%clk 0:04:26.2]} 9. Nbc3 {[%clk 0:04:33.2]} 9...
O-O {[%clk 0:03:46.5]} 10. Bg5 {[%clk 0:04:19.7]} 10... Nxe4 {[%clk 0:03:30.4]}
11. Nxe4 {[%clk 0:04:19.6]} 11... Bb6 {[%clk 0:03:29]} 12. Kd2 {[%clk
0:04:16.5]} 12... f6 {[%clk 0:03:23.1]} 13. Be3 {[%clk 0:04:13]} 13... Rd8+
{[%clk 0:03:22.1]} 14. Ke1 {[%clk 0:03:56.6]} 14... Bxe3 {[%clk 0:03:20.7]} 15.
N2c3 {[%clk 0:03:47.8]} 15... Nc6 {[%clk 0:03:07.7]} 16. Ke2 {[%clk 0:03:46.6]}
16... Bb6 {[%clk 0:03:03.4]} 17. Rad1 {[%clk 0:03:45.2]} 17... Nd4+ {[%clk
0:02:56]} 18. Kf1 {[%clk 0:03:36]} 18... e5 {[%clk 0:02:43.8]} 19. h4 {[%clk
0:03:32.4]} 19... Be6 {[%clk 0:02:42.6]} 20. b3 {[%clk 0:03:29.2]} 20... Nxc2
{[%clk 0:02:41.1]} 21. Rxd8+ {[%clk 0:03:26.2]} 21... Rxd8 {[%clk 0:02:40.3]}
22. h5 {[%clk 0:03:25.7]} 22... Ne3+ {[%clk 0:02:38.2]} 23. Ke2 {[%clk
0:03:23.2]} 23... Nxg2 {[%clk 0:02:32.1]} 24. h6 {[%clk 0:03:19.1]} 24... Nf4+
{[%clk 0:02:19.6]} 25. Kf1 {[%clk 0:03:15.1]} 25... Rd3 {[%clk 0:02:13.3]} 26.
hxg7 {[%clk 0:03:05.6]} 26... Kxg7 {[%clk 0:02:12]} 27. Rg1+ {[%clk 0:02:51.8]}
27... Bxg1 {[%clk 0:02:09.6]} 28. Kxg1 {[%clk 0:02:50.7]} 28... Rxf3 {[%clk
0:02:06]} 0-1

[Event "Live Chess"]
[Site "Chess.com"]
[Date "2023.05.21"]
[Round "-"]
[White "RoaringKnights"]
[Black "yeetpizza74"]
[Result "1-0"]
[WhiteElo "1077"]
[BlackElo "501"]
[TimeControl "300"]
[EndTime "4:27:27 PDT"]
[Termination "RoaringKnights won by checkmate"]

1. e4 {[%clk 0:04:57.4]} 1... c6 {[%clk 0:04:58.5]} 2. Bc4 {[%clk 0:04:56.6]}
2... d5 {[%clk 0:04:56.7]} 3. exd5 {[%clk 0:04:54.6]} 3... cxd5 {[%clk
0:04:55.8]} 4. Bb5+ {[%clk 0:04:53.4]} 4... Bd7 {[%clk 0:04:55.1]} 5. Bxd7+
{[%clk 0:04:52.8]} 5... Nxd7 {[%clk 0:04:51.7]} 6. d3 {[%clk 0:04:51.8]} 6... e5
{[%clk 0:04:50.3]} 7. Nf3 {[%clk 0:04:49.3]} 7... Ngf6 {[%clk 0:04:47.8]} 8. Qe2
{[%clk 0:04:46.8]} 8... Bd6 {[%clk 0:04:45.3]} 9. d4 {[%clk 0:04:44.7]} 9... O-O
{[%clk 0:04:34.5]} 10. dxe5 {[%clk 0:04:42.4]} 10... Bxe5 {[%clk 0:04:32.4]} 11.
Nxe5 {[%clk 0:04:40.5]} 11... Re8 {[%clk 0:04:31.2]} 12. Bf4 {[%clk 0:04:26.2]}
12... Ng4 {[%clk 0:04:17.6]} 13. Qxg4 {[%clk 0:04:16.2]} 13... Nxe5 {[%clk
0:04:16.6]} 14. Bxe5 {[%clk 0:04:03]} 14... Rxe5+ {[%clk 0:04:14.6]} 15. Kf1
{[%clk 0:04:01.2]} 15... Qe8 {[%clk 0:03:59.7]} 16. Nc3 {[%clk 0:03:57.1]} 16...
Qe7 {[%clk 0:03:56.6]} 17. g3 {[%clk 0:03:53.9]} 17... d4 {[%clk 0:03:50]} 18.
Qxd4 {[%clk 0:03:47.8]} 18... Rd8 {[%clk 0:03:47.7]} 19. Qh4 {[%clk 0:03:34.7]}
19... Qd7 {[%clk 0:03:16.9]} 20. Rd1 {[%clk 0:03:18.9]} 20... Qxd1+ {[%clk
0:02:41.8]} 21. Nxd1 {[%clk 0:03:16.7]} 21... Rxd1+ {[%clk 0:02:39.7]} 22. Kg2
{[%clk 0:03:15.4]} 22... Ree1 {[%clk 0:02:35.5]} 23. Rxe1 {[%clk 0:03:12.5]}
23... Rxe1 {[%clk 0:02:34.3]} 24. Qd8+ {[%clk 0:03:11.4]} 24... Re8 {[%clk
0:02:31.6]} 25. Qxe8# {[%clk 0:03:10.4]} 1-0

[Event "Live Chess"]
[Site "Chess.com"]
[Date "2023.05.21"]
[Round "-"]
[White "GwaryTek"]
[Black "Sha_25"]
[Result "1-0"]
[WhiteElo "2065"]
[BlackElo "1148"]
[TimeControl "300"]
[EndTime "4:27:32 PDT"]
[Termination "GwaryTek won on time"]

1. d4 {[%clk 0:04:57.3]} 1... Nf6 {[%clk 0:04:58.4]} 2. c4 {[%clk 0:04:55.7]}
2... g6 {[%clk 0:04:58]} 3. Nc3 {[%clk 0:04:55]} 3... Bg7 {[%clk 0:04:57.6]} 4.
e4 {[%clk 0:04:54.5]} 4... d6 {[%clk 0:04:57.3]} 5. Nge2 {[%clk 0:04:54]} 5...
O-O {[%clk 0:04:54]} 6. Ng3 {[%clk 0:04:53.4]} 6... c6 {[%clk 0:04:52.4]} 7. Be2
{[%clk 0:04:51.9]} 7... a5 {[%clk 0:04:48.7]} 8. O-O {[%clk 0:04:49.4]} 8... Na6
{[%clk 0:04:48.2]} 9. Be3 {[%clk 0:04:44.9]} 9... e5 {[%clk 0:04:46.2]} 10. d5
{[%clk 0:04:43.8]} 10... cxd5 {[%clk 0:04:40.6]} 11. cxd5 {[%clk 0:04:43.7]}
11... Bd7 {[%clk 0:04:35.3]} 12. Qd2 {[%clk 0:04:40.9]} 12... Ng4 {[%clk
0:04:26.9]} 13. Bxg4 {[%clk 0:04:33.9]} 13... Bxg4 {[%clk 0:04:25.3]} 14. f3
{[%clk 0:04:33.8]} 14... Bd7 {[%clk 0:04:22.4]} 15. Kh1 {[%clk 0:04:31.8]} 15...
f5 {[%clk 0:04:20.9]} 16. exf5 {[%clk 0:04:31.7]} 16... Bxf5 {[%clk 0:04:19.5]}
17. Rad1 {[%clk 0:04:19.8]} 17... Nc7 {[%clk 0:04:15.2]} 18. Bb6 {[%clk
0:04:17.9]} 18... Qd7 {[%clk 0:04:03.2]} 19. a4 {[%clk 0:04:01.5]} 19... Ra6
{[%clk 0:03:42.8]} 20. Be3 {[%clk 0:03:56]} 20... b5 {[%clk 0:03:29.8]} 21. axb5
{[%clk 0:03:28.3]} 21... Nxb5 {[%clk 0:03:29.7]} 22. Nce4 {[%clk 0:03:21.6]}
22... Rc8 {[%clk 0:03:00.4]} 23. Qe2 {[%clk 0:03:14.3]} 23... Raa8 {[%clk
0:02:41.1]} 24. Rc1 {[%clk 0:02:55.8]} 24... Rc7 {[%clk 0:02:16.6]} 25. Rxc7
{[%clk 0:02:22.9]} 25... Nxc7 {[%clk 0:02:16.5]} 26. Rc1 {[%clk 0:02:19.7]}
26... Nxd5 {[%clk 0:02:10.7]} 27. Qc4 {[%clk 0:01:45.1]} 27... Be6 {[%clk
0:02:01.4]} 28. Ng5 {[%clk 0:01:43.4]} 28... Rc8 {[%clk 0:01:33.4]} 29. Qxc8+
{[%clk 0:01:24.4]} 29... Qxc8 {[%clk 0:01:33.3]} 30. Rxc8+ {[%clk 0:01:22.8]}
30... Bxc8 {[%clk 0:01:32.3]} 31. Bd2 {[%clk 0:01:14.1]} 31... h6 {[%clk
0:00:51.8]} 32. N5e4 {[%clk 0:01:07.4]} 32... Ne7 {[%clk 0:00:19.5]} 33. Nxd6
{[%clk 0:00:59.6]} 33... e4 {[%clk 0:00:18.6]} 34. Ngxe4 {[%clk 0:00:52.1]}
34... Bxb2 {[%clk 0:00:17.9]} 35. Bxa5 {[%clk 0:00:49.1]} 35... Be6 {[%clk
0:00:13.9]} 36. Kg1 {[%clk 0:00:43.2]} 36... Nd5 {[%clk 0:00:13.1]} 37. Kf2
{[%clk 0:00:41.5]} 37... Bd4+ {[%clk 0:00:11.7]} 38. Kf1 {[%clk 0:00:38.5]}
38... Bd7 {[%clk 0:00:09.8]} 39. Bd2 {[%clk 0:00:36.2]} 39... Be3 {[%clk
0:00:06.2]} 40. Ke2 {[%clk 0:00:34.5]} 40... Bxd2 {[%clk 0:00:05.2]} 41. Kxd2
{[%clk 0:00:34.3]} 41... Nf4 {[%clk 0:00:04.2]} 42. g3 {[%clk 0:00:33.1]} 42...
Ne6 {[%clk 0:00:01.6]} 43. Ke3 {[%clk 0:00:31]} 43... Kg7 {[%clk 0:00:01]} 44.
h4 {[%clk 0:00:29.5]} 44... Bc6 {[%clk 0:00:00.6]} 45. Nc4 {[%clk 0:00:25.9]}
1-0

[Event "Live Chess"]
[Site "Chess.com"]
[Date "2023.05.21"]
[Round "-"]
[White "Prijmak"]
[Black "CeladonFish"]
[Result "1/2-1/2"]
[WhiteElo "1051"]
[BlackElo "1096"]
[TimeControl "300"]
[EndTime "4:27:34 PDT"]
[Termination "Game drawn - timeout vs insufficient material"]

1. e4 {[%clk 0:04:57.2]} 1... d6 {[%clk 0:04:59.3]} 2. d4 {[%clk 0:04:55]} 2...
Nf6 {[%clk 0:04:58.3]} 3. Nc3 {[%clk 0:04:52.9]} 3... g6 {[%clk 0:04:56.4]} 4.
Nf3 {[%clk 0:04:51.9]} 4... Bg7 {[%clk 0:04:54.5]} 5. Bc4 {[%clk 0:04:48.3]}
5... Nxe4 {[%clk 0:04:50.7]} 6. Nxe4 {[%clk 0:04:46]} 6... d5 {[%clk 0:04:49.6]}
7. Bb5+ {[%clk 0:04:36]} 7... c6 {[%clk 0:04:46.4]} 8. Bxc6+ {[%clk 0:04:33]}
8... Nxc6 {[%clk 0:04:43.1]} 9. Ng3 {[%clk 0:04:30.6]} 9... Bg4 {[%clk 0:04:37]}
10. c3 {[%clk 0:04:26.2]} 10... e5 {[%clk 0:04:31.5]} 11. h3 {[%clk 0:04:20.4]}
11... Bxf3 {[%clk 0:04:25.5]} 12. Qxf3 {[%clk 0:04:17.4]} 12... exd4 {[%clk
0:04:22.7]} 13. O-O {[%clk 0:04:08.1]} 13... dxc3 {[%clk 0:04:20.1]} 14. Re1+
{[%clk 0:04:06.6]} 14... Ne7 {[%clk 0:04:15]} 15. Rb1 {[%clk 0:04:05.1]} 15...
cxb2 {[%clk 0:04:12.5]} 16. Bxb2 {[%clk 0:04:02.5]} 16... Bxb2 {[%clk 0:04:09]}
17. Rxb2 {[%clk 0:04:01.5]} 17... O-O {[%clk 0:04:07.7]} 18. Rxb7 {[%clk
0:03:54.7]} 18... Re8 {[%clk 0:04:03.3]} 19. Qf6 {[%clk 0:03:50.4]} 19... Kf8
{[%clk 0:03:36.1]} 20. Qh8+ {[%clk 0:03:45.6]} 20... Ng8 {[%clk 0:03:34.7]} 21.
Rxe8+ {[%clk 0:03:40.2]} 21... Qxe8 {[%clk 0:03:33.1]} 22. Qxh7 {[%clk
0:03:37.4]} 22... d4 {[%clk 0:03:16]} 23. Qh4 {[%clk 0:03:21.6]} 23... d3 {[%clk
0:03:11.4]} 24. Qb4+ {[%clk 0:03:19.3]} 24... Kg7 {[%clk 0:03:07.5]} 25. Ne4
{[%clk 0:03:10.1]} 25... Rd8 {[%clk 0:02:57.7]} 26. Qc3+ {[%clk 0:03:03.4]}
26... Kf8 {[%clk 0:02:49.9]} 27. Qc5+ {[%clk 0:02:53.6]} 27... Kg7 {[%clk
0:02:46.2]} 28. Qc3+ {[%clk 0:02:50.3]} 28... Kf8 {[%clk 0:02:45.3]} 29. Qc5+
{[%clk 0:02:48.8]} 29... Ne7 {[%clk 0:02:39.8]} 30. Nd2 {[%clk 0:02:38.2]} 30...
Rd7 {[%clk 0:02:26.3]} 31. Rxd7 {[%clk 0:02:34.2]} 31... Qxd7 {[%clk 0:02:25.4]}
32. Qe5 {[%clk 0:02:29.7]} 32... Ng8 {[%clk 0:02:05.3]} 33. Qb8+ {[%clk
0:02:26.1]} 33... Kg7 {[%clk 0:02:03.6]} 34. Qe5+ {[%clk 0:02:23.9]} 34... f6
{[%clk 0:02:00.6]} 35. Qe3 {[%clk 0:02:19]} 35... Ne7 {[%clk 0:01:51.9]} 36. a3
{[%clk 0:02:08.3]} 36... Nf5 {[%clk 0:01:43.6]} 37. Qe4 {[%clk 0:02:04.5]} 37...
Nd4 {[%clk 0:01:36.2]} 38. Qe3 {[%clk 0:01:53.9]} 38... Qe6 {[%clk 0:01:12]} 39.
Qxe6 {[%clk 0:01:51]} 39... Nxe6 {[%clk 0:01:11.6]} 40. f3 {[%clk 0:01:47]}
40... f5 {[%clk 0:01:05.9]} 41. Kf2 {[%clk 0:01:46.1]} 41... Kf6 {[%clk
0:01:05.6]} 42. Ke3 {[%clk 0:01:45.3]} 42... Nc5 {[%clk 0:01:03.6]} 43. Kd4
{[%clk 0:01:43.3]} 43... Ne6+ {[%clk 0:00:58.7]} 44. Kxd3 {[%clk 0:01:42]} 44...
Nf4+ {[%clk 0:00:58.3]} 45. Ke3 {[%clk 0:01:36.2]} 45... Nxg2+ {[%clk
0:00:56.7]} 46. Kf2 {[%clk 0:01:35.3]} 46... Nf4 {[%clk 0:00:54.5]} 47. Kg3
{[%clk 0:01:31.7]} 47... g5 {[%clk 0:00:53]} 48. h4 {[%clk 0:01:27.9]} 48... Kg6
{[%clk 0:00:50.5]} 49. hxg5 {[%clk 0:01:25.5]} 49... Kxg5 {[%clk 0:00:48.8]} 50.
a4 {[%clk 0:01:20.9]} 50... Ne2+ {[%clk 0:00:47.4]} 51. Kf2 {[%clk 0:01:18.6]}
51... Nc3 {[%clk 0:00:43.6]} 52. a5 {[%clk 0:01:17.1]} 52... Nd5 {[%clk
0:00:33.8]} 53. Kg3 {[%clk 0:01:13.5]} 53... f4+ {[%clk 0:00:32.3]} 54. Kf2
{[%clk 0:01:11.7]} 54... Kf5 {[%clk 0:00:31.1]} 55. Ne4 {[%clk 0:01:08.2]} 55...
Nc7 {[%clk 0:00:28.6]} 56. Nd6+ {[%clk 0:01:04.8]} 56... Ke5 {[%clk 0:00:25.1]}
57. Nc8 {[%clk 0:01:01.8]} 57... a6 {[%clk 0:00:23.1]} 58. Nb6 {[%clk
0:00:57.2]} 58... Kf5 {[%clk 0:00:22]} 59. Nc4 {[%clk 0:00:53.3]} 59... Kg5
{[%clk 0:00:20.6]} 60. Ke2 {[%clk 0:00:49.4]} 60... Kf5 {[%clk 0:00:19.2]} 61.
Kd3 {[%clk 0:00:46.4]} 61... Kg5 {[%clk 0:00:18.8]} 62. Nd6 {[%clk 0:00:42.4]}
62... Kh4 {[%clk 0:00:16.7]} 63. Ke4 {[%clk 0:00:39.4]} 63... Kg3 {[%clk
0:00:15.7]} 64. Nf5+ {[%clk 0:00:37.5]} 64... Kf2 {[%clk 0:00:10.5]} 65. Kxf4
{[%clk 0:00:34.1]} 65... Nd5+ {[%clk 0:00:10.1]} 66. Ke5 {[%clk 0:00:30.2]}
66... Nc3 {[%clk 0:00:09.8]} 67. f4 {[%clk 0:00:27.5]} 67... Na4 {[%clk
0:00:08.9]} 68. Nd4 {[%clk 0:00:21.8]} 68... Nc5 {[%clk 0:00:08.6]} 69. Nc6
{[%clk 0:00:19.3]} 69... Kg3 {[%clk 0:00:08.2]} 70. f5 {[%clk 0:00:17.9]} 70...
Kg4 {[%clk 0:00:07.7]} 71. f6 {[%clk 0:00:16.7]} 71... Nd7+ {[%clk 0:00:07.3]}
72. Ke6 {[%clk 0:00:14.5]} 72... Nxf6 {[%clk 0:00:07]} 73. Kxf6 {[%clk
0:00:14.1]} 73... Kf4 {[%clk 0:00:06.3]} 74. Nb4 {[%clk 0:00:12.5]} 74... Ke4
{[%clk 0:00:06.1]} 75. Nxa6 {[%clk 0:00:11.3]} 75... Kd4 {[%clk 0:00:05.9]} 76.
Nc7 {[%clk 0:00:09.7]} 76... Kc4 {[%clk 0:00:05.6]} 77. a6 {[%clk 0:00:08.5]}
77... Kc5 {[%clk 0:00:05.3]} 78. a7 {[%clk 0:00:07.5]} 78... Kb6 {[%clk
0:00:05.1]} 79. a8=Q {[%clk 0:00:05.7]} 79... Kxc7 {[%clk 0:00:04.8]} 80. Qd5
{[%clk 0:00:03.3]} 80... Kb6 {[%clk 0:00:03.7]} 81. Qd6+ {[%clk 0:00:02.3]}
81... Ka7 {[%clk 0:00:02.9]} 82. Qd7+ {[%clk 0:00:01.1]} 82... Ka6 {[%clk
0:00:01.6]} 1/2-1/2

[Event "Live Chess"]
[Site "Chess.com"]
[Date "2023.05.21"]
[Round "-"]
[White "WilliWeisswurst"]
[Black "viktorskliarov"]
[Result "0-1"]
[WhiteElo "1775"]
[BlackElo "2653"]
[TimeControl "300"]
[EndTime "4:27:35 PDT"]
[Termination "viktorskliarov won on time"]

1. e4 {[%clk 0:04:57.5]} 1... c5 {[%clk 0:04:57.5]} 2. Nf3 {[%clk 0:04:56.4]}
2... Nc6 {[%clk 0:04:54.4]} 3. d4 {[%clk 0:04:55.8]} 3... cxd4 {[%clk
0:04:53.4]} 4. Nxd4 {[%clk 0:04:55.6]} 4... g6 {[%clk 0:04:52.8]} 5. Nc3 {[%clk
0:04:54.8]} 5... Bg7 {[%clk 0:04:52.2]} 6. Be3 {[%clk 0:04:54.3]} 6... Nf6
{[%clk 0:04:51.6]} 7. Bc4 {[%clk 0:04:52.7]} 7... O-O {[%clk 0:04:50.3]} 8. O-O
{[%clk 0:04:51.7]} 8... d6 {[%clk 0:04:48.2]} 9. h3 {[%clk 0:04:46]} 9... Bd7
{[%clk 0:04:45.6]} 10. a3 {[%clk 0:04:38.1]} 10... Rc8 {[%clk 0:04:42.8]} 11.
Bb3 {[%clk 0:04:36.4]} 11... Na5 {[%clk 0:04:39.1]} 12. f4 {[%clk 0:04:16.6]}
12... Nxb3 {[%clk 0:04:26.9]} 13. cxb3 {[%clk 0:04:14.3]} 13... a6 {[%clk
0:04:13.1]} 14. f5 {[%clk 0:04:12.8]} 14... Bc6 {[%clk 0:04:07.3]} 15. fxg6
{[%clk 0:04:03]} 15... hxg6 {[%clk 0:04:03.2]} 16. Nxc6 {[%clk 0:03:52.3]} 16...
Rxc6 {[%clk 0:03:59.8]} 17. Qf3 {[%clk 0:03:14.2]} 17... Qa5 {[%clk 0:03:39]}
18. b4 {[%clk 0:02:54.5]} 18... Qh5 {[%clk 0:03:26.7]} 19. g4 {[%clk 0:02:40.9]}
19... Qe5 {[%clk 0:03:20.7]} 20. Rad1 {[%clk 0:02:11.7]} 20... Qe6 {[%clk
0:03:10.1]} 21. Rfe1 {[%clk 0:01:42.5]} 21... Nd7 {[%clk 0:03:06.3]} 22. Nd5
{[%clk 0:01:31.3]} 22... Ne5 {[%clk 0:03:03.3]} 23. Qg3 {[%clk 0:01:15.9]} 23...
Rfc8 {[%clk 0:02:58.7]} 24. Bg5 {[%clk 0:00:58.8]} 24... Bf8 {[%clk 0:02:48.5]}
25. h4 {[%clk 0:00:50.1]} 25... f6 {[%clk 0:02:42.5]} 26. Bxf6 {[%clk
0:00:34.3]} 26... exf6 {[%clk 0:02:38.4]} 27. Rf1 {[%clk 0:00:33.7]} 27... Bg7
{[%clk 0:02:33]} 28. g5 {[%clk 0:00:29.5]} 28... fxg5 {[%clk 0:02:27.7]} 29.
Qxg5 {[%clk 0:00:26.9]} 29... Qg4+ {[%clk 0:02:26.7]} 30. Qxg4 {[%clk
0:00:25.4]} 30... Nxg4 {[%clk 0:02:26.6]} 31. Ne7+ {[%clk 0:00:24.9]} 31... Kh7
{[%clk 0:02:25.2]} 32. Nxc8 {[%clk 0:00:24.1]} 32... Rxc8 {[%clk 0:02:23.8]} 33.
Rf7 {[%clk 0:00:23]} 33... Kg8 {[%clk 0:02:08]} 34. Rxb7 {[%clk 0:00:21.6]}
34... Be5 {[%clk 0:02:07.2]} 35. Rf1 {[%clk 0:00:17.7]} 35... Nf6 {[%clk
0:01:55.6]} 36. Kg2 {[%clk 0:00:15.2]} 36... Bxb2 {[%clk 0:01:45.7]} 37. a4
{[%clk 0:00:13.6]} 37... Be5 {[%clk 0:01:41.3]} 38. Kf3 {[%clk 0:00:12.5]} 38...
Rc3+ {[%clk 0:01:39.5]} 39. Ke2 {[%clk 0:00:11.5]} 39... Ra3 {[%clk 0:01:38.1]}
40. a5 {[%clk 0:00:09.7]} 40... Nxe4 {[%clk 0:01:28.3]} 41. Rff7 {[%clk
0:00:07.7]} 41... Nc3+ {[%clk 0:01:24.9]} 42. Kd2 {[%clk 0:00:06.2]} 42... Nd5
{[%clk 0:01:20.9]} 43. Kc1 {[%clk 0:00:05.8]} 43... Rc3+ {[%clk 0:01:19.1]} 44.
Kb1 {[%clk 0:00:04.8]} 44... Rc4 {[%clk 0:01:17.1]} 45. Rfd7 {[%clk 0:00:04.4]}
45... Rxb4+ {[%clk 0:01:15.7]} 46. Rxb4 {[%clk 0:00:02.7]} 46... Nxb4 {[%clk
0:01:15.6]} 47. Rb7 {[%clk 0:00:01.8]} 47... Nc6 {[%clk 0:01:13.6]} 48. Rb6
{[%clk 0:00:01.2]} 48... Nxa5 {[%clk 0:01:12.9]} 49. Rxa6 {[%clk 0:00:00.1]}
49... Nc4 {[%clk 0:01:12.8]} 0-1